[Event "Titled Tuesday Blitz November 14 Early 2023"]
[White "Kamsky, Gata"]
[Black "Aaditya Dhingra"]
[WhiteFideId "2000024"]
[BlackFideId "25678191"]
[WhiteElo "2898"]
[BlackElo "2602"]
[Result "1-0"]
[Round "2"]
[TimeControl "180+1"]
[Date "2023.11.14"]
[WhiteClock "0:01:05"]
[BlackClock "0:00:23"]
[Board "38"]

1. d4 {[%clk 0:03:00]}  Nf6 {[%clk 0:02:58]} 2. Bf4 {[%clk 0:02:57]}  b6 {[%clk 0:02:57]} 3. e3 {[%clk 0:02:57]}  Bb7 {[%clk 0:02:58]} 4. Nf3 {[%clk 0:02:56]}  g6 {[%clk 0:02:57]} 5. h3 {[%clk 0:02:54]}  Bg7 {[%clk 0:02:58]} 6. c3 {[%clk 0:02:53]}  O-O {[%clk 0:02:58]} 7. Nbd2 {[%clk 0:02:52]}  d6 {[%clk 0:02:59]} 8. a4 {[%clk 0:02:52]}  a6 {[%clk 0:02:58]} 9. Bc4 {[%clk 0:02:51]}  Nbd7 {[%clk 0:02:56]} 10. O-O {[%clk 0:02:51]}  Qe8 {[%clk 0:02:53]} 11. Bh2 {[%clk 0:02:46]}  e5 {[%clk 0:02:52]} 12. b4 {[%clk 0:02:41]}  Qe7 {[%clk 0:02:50]} 13. Qb3 {[%clk 0:02:36]}  e4 {[%clk 0:02:34]} 14. Ne1 {[%clk 0:02:34]}  h5 {[%clk 0:02:31]} 15. Nc2 {[%clk 0:02:33]}  h4 {[%clk 0:02:06]} 16. Be2 {[%clk 0:02:28]}  Nh7 {[%clk 0:02:04]} 17. a5 {[%clk 0:02:25]}  b5 {[%clk 0:01:58]} 18. c4 {[%clk 0:02:24]}  bxc4 {[%clk 0:01:58]} 19. Bxc4 {[%clk 0:02:13]}  Ndf6 {[%clk 0:01:57]} 20. b5 {[%clk 0:02:11]}  axb5 {[%clk 0:01:54]} 21. Qxb5 {[%clk 0:02:10]}  Bc8 {[%clk 0:01:46]} 22. a6 {[%clk 0:02:02]}  Bd7 {[%clk 0:01:35]} 23. Qa5 {[%clk 0:02:02]}  Ra7 {[%clk 0:01:21]} 24. Nb4 {[%clk 0:01:57]}  c5 {[%clk 0:01:13]} 25. Qb6 {[%clk 0:01:49]}  Bxh3 {[%clk 0:01:05]} 26. Qxd6 {[%clk 0:01:30]}  cxb4 {[%clk 0:01:01]} 27. Qxe7 {[%clk 0:01:29]}  Rxe7 {[%clk 0:01:00]} 28. gxh3 {[%clk 0:01:28]}  Ra8 {[%clk 0:00:55]} 29. Rfb1 {[%clk 0:01:20]}  Ng5 {[%clk 0:00:54]} 30. Kg2 {[%clk 0:01:20]}  Rd7 {[%clk 0:00:34]} 31. Rxb4 {[%clk 0:01:16]}  Bf8 {[%clk 0:00:34]} 32. Rb5 {[%clk 0:01:11]}  Ne6 {[%clk 0:00:34]} 33. Be5 {[%clk 0:01:06]}  Ne8 {[%clk 0:00:23]} 34. Nxe4 {[%clk 0:01:05]} 1-0


[Site "https://www.chess.com"]

[Event "Titled Tuesday Blitz November 14 Early 2023"]
[White "Sydoryka, Vladyslav"]
[Black "Mahdavi, Reza"]
[WhiteFideId "14145928"]
[BlackFideId "12595926"]
[WhiteElo "2601"]
[BlackElo "2897"]
[Result "1-0"]
[Round "2"]
[TimeControl "180+1"]
[Date "2023.11.14"]
[WhiteClock "0:00:12"]
[BlackClock "0:00:57"]
[Board "39"]

1. c4 {[%clk 0:02:58]}  e6 {[%clk 0:02:59]} 2. g3 {[%clk 0:02:59]}  d5 {[%clk 0:02:59]} 3. Bg2 {[%clk 0:03:00]}  Nf6 {[%clk 0:03:00]} 4. Nf3 {[%clk 0:03:01]}  d4 {[%clk 0:03:01]} 5. O-O {[%clk 0:03:01]}  c5 {[%clk 0:03:01]} 6. e3 {[%clk 0:02:59]}  Nc6 {[%clk 0:03:02]} 7. exd4 {[%clk 0:03:00]}  cxd4 {[%clk 0:03:03]} 8. Re1 {[%clk 0:03:01]}  Bd6 {[%clk 0:03:03]} 9. Na3 {[%clk 0:02:50]}  O-O {[%clk 0:03:01]} 10. Nc2 {[%clk 0:02:47]}  e5 {[%clk 0:03:02]} 11. d3 {[%clk 0:02:47]}  Re8 {[%clk 0:02:59]} 12. b4 {[%clk 0:02:44]}  Bf5 {[%clk 0:02:48]} 13. b5 {[%clk 0:02:40]}  Na5 {[%clk 0:02:37]} 14. Bg5 {[%clk 0:02:18]}  h6 {[%clk 0:02:37]} 15. Bxf6 {[%clk 0:02:16]}  Qxf6 {[%clk 0:02:38]} 16. Nh4 {[%clk 0:02:09]}  Bh7 {[%clk 0:02:32]} 17. Qd2 {[%clk 0:01:58]}  Bc7 {[%clk 0:02:33]} 18. Nb4 {[%clk 0:01:53]}  Qg5 {[%clk 0:02:23]} 19. Qe2 {[%clk 0:01:38]}  Rad8 {[%clk 0:02:12]} 20. Nd5 {[%clk 0:01:34]}  Bd6 {[%clk 0:02:13]} 21. Rac1 {[%clk 0:01:30]}  b6 {[%clk 0:02:13]} 22. f4 {[%clk 0:01:07]}  exf4 {[%clk 0:01:55]} 23. Qxe8+ {[%clk 0:01:04]}  Rxe8 {[%clk 0:01:56]} 24. Rxe8+ {[%clk 0:01:05]}  Bf8 {[%clk 0:01:57]} 25. Nf3 {[%clk 0:01:04]}  Qh5 {[%clk 0:01:41]} 26. Ne7+ {[%clk 0:01:02]}  Kh8 {[%clk 0:01:42]} 27. Rxf8+ {[%clk 0:01:02]}  Bg8 {[%clk 0:01:43]} 28. Rxg8+ {[%clk 0:00:37]}  Kh7 {[%clk 0:01:43]} 29. gxf4 {[%clk 0:00:38]}  Qc5 {[%clk 0:01:37]} 30. Re1 {[%clk 0:00:35]}  Qb4 {[%clk 0:01:33]} 31. Rf8 {[%clk 0:00:28]}  Nb7 {[%clk 0:01:32]} 32. Rxf7 {[%clk 0:00:22]}  Nd6 {[%clk 0:01:32]} 33. Rf8 {[%clk 0:00:22]}  Qc3 {[%clk 0:01:25]} 34. h4 {[%clk 0:00:15]}  g6 {[%clk 0:00:57]} 35. Nd5 {[%clk 0:00:12]} 1-0


[Site "https://www.chess.com"]

[Event "Titled Tuesday Blitz November 14 Early 2023"]
[White "Skatchkov, Valery"]
[Black "Salinas Herrera, Pablo"]
[WhiteFideId "24195812"]
[BlackFideId "3407128"]
[WhiteElo "2597"]
[BlackElo "2893"]
[Result "0-1"]
[Round "2"]
[TimeControl "180+1"]
[Date "2023.11.14"]
[WhiteClock "0:00:15"]
[BlackClock "0:00:55"]
[Board "41"]

1. d4 {[%clk 0:02:59]}  d5 {[%clk 0:02:59]} 2. c4 {[%clk 0:02:59]}  e6 {[%clk 0:02:59]} 3. Nf3 {[%clk 0:02:59]}  Nf6 {[%clk 0:02:59]} 4. g3 {[%clk 0:02:59]}  c6 {[%clk 0:02:59]} 5. Bg2 {[%clk 0:02:59]}  b6 {[%clk 0:02:59]} 6. O-O {[%clk 0:02:59]}  Bb7 {[%clk 0:03:00]} 7. Nc3 {[%clk 0:03:00]}  dxc4 {[%clk 0:02:59]} 8. Ne5 {[%clk 0:02:59]}  Nbd7 {[%clk 0:02:55]} 9. Nxc4 {[%clk 0:02:59]}  Be7 {[%clk 0:02:54]} 10. Bf4 {[%clk 0:02:58]}  O-O {[%clk 0:02:47]} 11. Nd6 {[%clk 0:02:58]}  Bxd6 {[%clk 0:02:38]} 12. Bxd6 {[%clk 0:02:59]}  Re8 {[%clk 0:02:39]} 13. Qc2 {[%clk 0:02:56]}  Qc8 {[%clk 0:02:33]} 14. e4 {[%clk 0:02:21]}  c5 {[%clk 0:02:31]} 15. d5 {[%clk 0:02:20]}  exd5 {[%clk 0:02:30]} 16. exd5 {[%clk 0:02:19]}  a6 {[%clk 0:02:26]} 17. a4 {[%clk 0:02:19]}  c4 {[%clk 0:02:22]} 18. Rae1 {[%clk 0:02:13]}  Nf8 {[%clk 0:02:17]} 19. Re7 {[%clk 0:01:58]}  Ng6 {[%clk 0:02:08]} 20. Rc7 {[%clk 0:01:49]}  Qd8 {[%clk 0:02:08]} 21. Rxb7 {[%clk 0:01:29]}  Qxd6 {[%clk 0:02:07]} 22. Qd2 {[%clk 0:01:23]}  Nd7 {[%clk 0:01:39]} 23. Ne4 {[%clk 0:01:13]}  Rxe4 {[%clk 0:01:39]} 24. Bxe4 {[%clk 0:01:14]}  Nc5 {[%clk 0:01:39]} 25. Bxg6 {[%clk 0:00:38]}  hxg6 {[%clk 0:01:36]} 26. Rxf7 {[%clk 0:00:27]}  Kxf7 {[%clk 0:01:34]} 27. Qd4 {[%clk 0:00:27]}  b5 {[%clk 0:01:29]} 28. axb5 {[%clk 0:00:27]}  axb5 {[%clk 0:01:29]} 29. Re1 {[%clk 0:00:25]}  Re8 {[%clk 0:01:26]} 30. Rxe8 {[%clk 0:00:22]}  Kxe8 {[%clk 0:01:26]} 31. Qxg7 {[%clk 0:00:23]}  Nd3 {[%clk 0:01:11]} 32. Qb7 {[%clk 0:00:21]}  Qc5 {[%clk 0:01:05]} 33. Kg2 {[%clk 0:00:20]}  Qxf2+ {[%clk 0:01:04]} 34. Kh3 {[%clk 0:00:20]}  Qf5+ {[%clk 0:01:05]} 35. Kg2 {[%clk 0:00:16]}  Qe4+ {[%clk 0:00:56]} 36. Kh3 {[%clk 0:00:15]}  Nf2# {[%clk 0:00:55]} 0-1


[Site "https://www.chess.com"]

[Event "Titled Tuesday Blitz November 14 Early 2023"]
[White "Steinberg, Nitzan"]
[Black "Ahmad, Khagan"]
[WhiteFideId "2801795"]
[BlackFideId "13431552"]
[WhiteElo "2886"]
[BlackElo "2597"]
[Result "1-0"]
[Round "2"]
[TimeControl "180+1"]
[Date "2023.11.14"]
[WhiteClock "0:00:05"]
[BlackClock "0:00:00"]
[Board "42"]

1. d4 {[%clk 0:03:00]}  Nf6 {[%clk 0:02:56]} 2. Nf3 {[%clk 0:03:00]}  d5 {[%clk 0:02:56]} 3. Bf4 {[%clk 0:03:00]}  c5 {[%clk 0:02:53]} 4. e3 {[%clk 0:03:00]}  Nc6 {[%clk 0:02:53]} 5. Nbd2 {[%clk 0:02:48]}  Nh5 {[%clk 0:02:50]} 6. Be5 {[%clk 0:02:45]}  f6 {[%clk 0:02:41]} 7. Bg3 {[%clk 0:02:45]}  Bg4 {[%clk 0:02:40]} 8. Be2 {[%clk 0:02:32]}  e6 {[%clk 0:02:33]} 9. c3 {[%clk 0:02:27]}  Be7 {[%clk 0:02:14]} 10. dxc5 {[%clk 0:02:22]}  Bxc5 {[%clk 0:02:12]} 11. Nd4 {[%clk 0:02:22]}  Bxe2 {[%clk 0:02:09]} 12. Qxe2 {[%clk 0:02:20]}  Nxg3 {[%clk 0:02:09]} 13. hxg3 {[%clk 0:02:21]}  Qd7 {[%clk 0:02:07]} 14. N2b3 {[%clk 0:02:12]}  Bd6 {[%clk 0:02:04]} 15. Rd1 {[%clk 0:01:55]}  Nxd4 {[%clk 0:01:58]} 16. Nxd4 {[%clk 0:01:51]}  f5 {[%clk 0:01:45]} 17. g4 {[%clk 0:01:44]}  Be5 {[%clk 0:00:44]} 18. gxf5 {[%clk 0:01:43]}  exf5 {[%clk 0:00:40]} 19. Qf3 {[%clk 0:01:15]}  g6 {[%clk 0:00:34]} 20. Nc2 {[%clk 0:01:09]}  O-O-O {[%clk 0:00:19]} 21. Nb4 {[%clk 0:01:08]}  Qa4 {[%clk 0:00:14]} 22. O-O {[%clk 0:00:51]}  a5 {[%clk 0:00:07]} 23. Rxd5 {[%clk 0:00:44]}  axb4 {[%clk 0:00:07]} 24. Rxe5 {[%clk 0:00:43]}  bxc3 {[%clk 0:00:05]} 25. Rc1 {[%clk 0:00:25]}  Kb8 {[%clk 0:00:04]} 26. Re7 {[%clk 0:00:21]}  Rd7 {[%clk 0:00:03]} 27. Rxd7 {[%clk 0:00:20]}  Qxd7 {[%clk 0:00:03]} 28. Rxc3 {[%clk 0:00:20]}  Rc8 {[%clk 0:00:04]} 29. Qf4+ {[%clk 0:00:20]}  Ka7 {[%clk 0:00:02]} 30. Qd4+ {[%clk 0:00:11]}  Qxd4 {[%clk 0:00:02]} 31. exd4 {[%clk 0:00:12]}  Re8 {[%clk 0:00:02]} 32. Kf1 {[%clk 0:00:11]}  Kb6 {[%clk 0:00:01]} 33. a4 {[%clk 0:00:07]}  Ka5 {[%clk 0:00:01]} 34. Rc4 {[%clk 0:00:06]}  Rd8 {[%clk 0:00:01]} 35. f3 {[%clk 0:00:05]}  b5 {[%clk 0:00:01]} 36. axb5 {[%clk 0:00:04]}  Kxb5 {[%clk 0:00:02]} 37. b3 {[%clk 0:00:05]}  Ra8 {[%clk 0:00:02]} 38. Rc7 {[%clk 0:00:03]}  h5 {[%clk 0:00:02]} 39. Rg7 {[%clk 0:00:04]}  Ra6 {[%clk 0:00:02]} 40. Kf2 {[%clk 0:00:04]}  Kb4 {[%clk 0:00:02]} 41. Ke3 {[%clk 0:00:04]}  Kxb3 {[%clk 0:00:03]} 42. Kf4 {[%clk 0:00:04]}  Kc4 {[%clk 0:00:03]} 43. Rd7 {[%clk 0:00:03]}  Ra2 {[%clk 0:00:02]} 44. g3 {[%clk 0:00:03]}  Rf2 {[%clk 0:00:01]} 45. d5 {[%clk 0:00:03]}  Kc5 {[%clk 0:00:02]} 46. d6 {[%clk 0:00:03]}  Kc6 {[%clk 0:00:02]} 47. Rd8 {[%clk 0:00:03]}  Rd2 {[%clk 0:00:01]} 48. Ke5 {[%clk 0:00:04]}  Rd5+ {[%clk 0:00:02]} 49. Ke6 {[%clk 0:00:05]}  Rd1 {[%clk 0:00:00]} 50. Rc8+ {[%clk 0:00:05]} 1-0


[Site "https://www.chess.com"]

[Event "Titled Tuesday Blitz November 14 Early 2023"]
[White "borocotoajua"]
[Black "Bachmann, Axel"]
[BlackFideId "3700488"]
[WhiteElo "2593"]
[BlackElo "2878"]
[Result "0-1"]
[Round "2"]
[TimeControl "180+1"]
[Date "2023.11.14"]
[WhiteClock "0:00:06"]
[BlackClock "0:01:43"]
[Board "44"]

1. d4 {[%clk 0:03:00]}  Nf6 {[%clk 0:02:59]} 2. Nf3 {[%clk 0:02:59]}  e6 {[%clk 0:03:00]} 3. c4 {[%clk 0:03:00]}  c5 {[%clk 0:02:59]} 4. d5 {[%clk 0:03:00]}  exd5 {[%clk 0:03:00]} 5. cxd5 {[%clk 0:03:00]}  d6 {[%clk 0:02:59]} 6. Nc3 {[%clk 0:03:01]}  g6 {[%clk 0:02:59]} 7. e4 {[%clk 0:03:00]}  Bg7 {[%clk 0:02:59]} 8. Be2 {[%clk 0:03:01]}  O-O {[%clk 0:02:58]} 9. O-O {[%clk 0:03:00]}  Bg4 {[%clk 0:02:58]} 10. Nd2 {[%clk 0:02:53]}  Bxe2 {[%clk 0:02:58]} 11. Qxe2 {[%clk 0:02:54]}  Re8 {[%clk 0:02:58]} 12. Qb5 {[%clk 0:02:35]}  Qc7 {[%clk 0:02:51]} 13. Re1 {[%clk 0:02:21]}  a6 {[%clk 0:02:46]} 14. Qb3 {[%clk 0:02:14]}  b5 {[%clk 0:02:43]} 15. e5 {[%clk 0:02:12]}  dxe5 {[%clk 0:02:30]} 16. Nde4 {[%clk 0:02:10]}  Nbd7 {[%clk 0:02:24]} 17. Bg5 {[%clk 0:01:52]}  Nxe4 {[%clk 0:02:18]} 18. Nxe4 {[%clk 0:01:52]}  h6 {[%clk 0:02:19]} 19. d6 {[%clk 0:01:47]}  Qc6 {[%clk 0:02:18]} 20. Be7 {[%clk 0:01:47]}  c4 {[%clk 0:02:17]} 21. Qf3 {[%clk 0:01:46]}  Rac8 {[%clk 0:02:16]} 22. a4 {[%clk 0:01:15]}  f5 {[%clk 0:02:15]} 23. axb5 {[%clk 0:01:11]}  axb5 {[%clk 0:02:16]} 24. Nc3 {[%clk 0:01:11]}  e4 {[%clk 0:02:13]} 25. Qg3 {[%clk 0:01:07]}  Kh7 {[%clk 0:02:10]} 26. Ra7 {[%clk 0:00:57]}  b4 {[%clk 0:02:08]} 27. Ne2 {[%clk 0:00:55]}  c3 {[%clk 0:01:55]} 28. bxc3 {[%clk 0:00:56]}  bxc3 {[%clk 0:01:56]} 29. Nf4 {[%clk 0:00:57]}  g5 {[%clk 0:01:54]} 30. Ne6 {[%clk 0:00:53]}  c2 {[%clk 0:01:51]} 31. Rc1 {[%clk 0:00:41]}  Qd5 {[%clk 0:01:50]} 32. Nxg5+ {[%clk 0:00:27]}  hxg5 {[%clk 0:01:47]} 33. h4 {[%clk 0:00:15]}  Qd1+ {[%clk 0:01:44]} 34. Kh2 {[%clk 0:00:15]}  Qxc1 {[%clk 0:01:43]} 35. hxg5 {[%clk 0:00:14]}  Be5 {[%clk 0:01:43]} 36. g6+ {[%clk 0:00:06]}  Kg8 {[%clk 0:01:43]} 0-1


[Site "https://www.chess.com"]

[Event "Titled Tuesday Blitz November 14 Early 2023"]
[White "Tikhonov, Viacheslav"]
[Black "Klukin, Kirill"]
[WhiteFideId "44196407"]
[BlackFideId "24199273"]
[WhiteElo "2589"]
[BlackElo "2867"]
[Result "1/2-1/2"]
[Round "2"]
[TimeControl "180+1"]
[Date "2023.11.14"]
[WhiteClock "0:00:20"]
[BlackClock "0:00:27"]
[Board "46"]

1. e4 {[%clk 0:02:56]}  c5 {[%clk 0:02:57]} 2. Nf3 {[%clk 0:02:56]}  g6 {[%clk 0:02:57]} 3. d4 {[%clk 0:02:55]}  cxd4 {[%clk 0:02:58]} 4. Nxd4 {[%clk 0:02:56]}  Bg7 {[%clk 0:02:58]} 5. c4 {[%clk 0:02:57]}  Nc6 {[%clk 0:02:59]} 6. Be3 {[%clk 0:02:57]}  Nf6 {[%clk 0:02:59]} 7. Nc3 {[%clk 0:02:57]}  O-O {[%clk 0:03:00]} 8. Be2 {[%clk 0:02:57]}  d6 {[%clk 0:03:00]} 9. O-O {[%clk 0:02:57]}  Bd7 {[%clk 0:03:01]} 10. h3 {[%clk 0:02:58]}  Nxd4 {[%clk 0:03:00]} 11. Bxd4 {[%clk 0:02:59]}  Bc6 {[%clk 0:03:01]} 12. Qc2 {[%clk 0:02:57]}  a5 {[%clk 0:03:01]} 13. Rad1 {[%clk 0:02:56]}  Qc7 {[%clk 0:02:16]} 14. f4 {[%clk 0:02:32]}  e5 {[%clk 0:02:04]} 15. Be3 {[%clk 0:02:23]}  exf4 {[%clk 0:01:53]} 16. Bxf4 {[%clk 0:02:21]}  Qb6+ {[%clk 0:01:36]} 17. Kh2 {[%clk 0:02:19]}  Rfe8 {[%clk 0:01:37]} 18. Bf3 {[%clk 0:02:02]}  Qc5 {[%clk 0:01:27]} 19. Qd3 {[%clk 0:01:44]}  Rad8 {[%clk 0:01:14]} 20. Bxd6 {[%clk 0:01:38]}  Qa7 {[%clk 0:01:11]} 21. e5 {[%clk 0:01:30]}  Nd7 {[%clk 0:01:04]} 22. Qc2 {[%clk 0:00:50]}  Bxf3 {[%clk 0:00:55]} 23. Rxf3 {[%clk 0:00:39]}  Nxe5 {[%clk 0:00:55]} 24. Bxe5 {[%clk 0:00:29]}  Bxe5+ {[%clk 0:00:56]} 25. Kh1 {[%clk 0:00:28]}  Rxd1+ {[%clk 0:00:44]} 26. Qxd1 {[%clk 0:00:27]}  Qc5 {[%clk 0:00:37]} 27. b3 {[%clk 0:00:24]}  Bxc3 {[%clk 0:00:37]} 28. Rxc3 {[%clk 0:00:24]}  Qb4 {[%clk 0:00:33]} 29. Qd2 {[%clk 0:00:16]}  h5 {[%clk 0:00:25]} 30. Rd3 {[%clk 0:00:15]}  Re1+ {[%clk 0:00:24]} 31. Kh2 {[%clk 0:00:15]}  Qe7 {[%clk 0:00:24]} 32. Rd8+ {[%clk 0:00:09]}  Kh7 {[%clk 0:00:24]} 33. Qd4 {[%clk 0:00:05]}  Qe5+ {[%clk 0:00:18]} 34. Qxe5 {[%clk 0:00:05]}  Rxe5 {[%clk 0:00:19]} 35. Rd7 {[%clk 0:00:06]}  b5 {[%clk 0:00:14]} 36. cxb5 {[%clk 0:00:04]}  Rxb5 {[%clk 0:00:15]} 37. Rxf7+ {[%clk 0:00:05]}  Kh6 {[%clk 0:00:16]} 38. Rf4 {[%clk 0:00:04]}  Rd5 {[%clk 0:00:15]} 39. Ra4 {[%clk 0:00:04]}  Kg5 {[%clk 0:00:15]} 40. Kg3 {[%clk 0:00:04]}  Kf5 {[%clk 0:00:14]} 41. Kf3 {[%clk 0:00:04]}  g5 {[%clk 0:00:12]} 42. g4+ {[%clk 0:00:04]}  hxg4+ {[%clk 0:00:13]} 43. hxg4+ {[%clk 0:00:05]}  Ke5 {[%clk 0:00:13]} 44. Ke3 {[%clk 0:00:06]}  Rc5 {[%clk 0:00:11]} 45. Kd3 {[%clk 0:00:05]}  Kd5 {[%clk 0:00:11]} 46. Rd4+ {[%clk 0:00:03]}  Ke5 {[%clk 0:00:11]} 47. Rc4 {[%clk 0:00:03]}  Rd5+ {[%clk 0:00:11]} 48. Ke3 {[%clk 0:00:04]}  Rb5 {[%clk 0:00:09]} 49. Rc3 {[%clk 0:00:03]}  Rb4 {[%clk 0:00:08]} 50. Rc5+ {[%clk 0:00:02]}  Kf6 {[%clk 0:00:09]} 51. Kf3 {[%clk 0:00:02]}  Rf4+ {[%clk 0:00:09]} 52. Kg3 {[%clk 0:00:02]}  a4 {[%clk 0:00:08]} 53. Rf5+ {[%clk 0:00:03]}  Rxf5 {[%clk 0:00:09]} 54. gxf5 {[%clk 0:00:04]}  Kxf5 {[%clk 0:00:10]} 55. bxa4 {[%clk 0:00:02]}  Ke5 {[%clk 0:00:10]} 56. Kg4 {[%clk 0:00:02]}  Kd5 {[%clk 0:00:10]} 57. Kxg5 {[%clk 0:00:03]}  Kc5 {[%clk 0:00:11]} 58. Kf4 {[%clk 0:00:04]}  Kb6 {[%clk 0:00:11]} 59. Ke3 {[%clk 0:00:05]}  Ka5 {[%clk 0:00:12]} 60. Kd2 {[%clk 0:00:06]}  Kxa4 {[%clk 0:00:13]} 61. Kc2 {[%clk 0:00:06]}  Ka3 {[%clk 0:00:14]} 62. Kb1 {[%clk 0:00:07]}  Kb4 {[%clk 0:00:15]} 63. Kb2 {[%clk 0:00:08]}  Ka4 {[%clk 0:00:16]} 64. a3 {[%clk 0:00:09]}  Kb5 {[%clk 0:00:16]} 65. Ka2 {[%clk 0:00:10]}  Ka5 {[%clk 0:00:17]} 66. Kb3 {[%clk 0:00:10]}  Ka6 {[%clk 0:00:18]} 67. a4 {[%clk 0:00:11]}  Ka7 {[%clk 0:00:19]} 68. Ka3 {[%clk 0:00:12]}  Ka8 {[%clk 0:00:20]} 69. Kb4 {[%clk 0:00:13]}  Kb8 {[%clk 0:00:21]} 70. a5 {[%clk 0:00:14]}  Ka8 {[%clk 0:00:22]} 71. Ka4 {[%clk 0:00:15]}  Kb8 {[%clk 0:00:23]} 72. Kb5 {[%clk 0:00:16]}  Ka8 {[%clk 0:00:24]} 73. a6 {[%clk 0:00:17]}  Kb8 {[%clk 0:00:25]} 74. Ka5 {[%clk 0:00:18]}  Ka8 {[%clk 0:00:25]} 75. Kb6 {[%clk 0:00:19]}  Kb8 {[%clk 0:00:26]} 76. a7+ {[%clk 0:00:19]}  Ka8 {[%clk 0:00:27]} 77. Ka6 {[%clk 0:00:20]} 1/2-1/2


[Site "https://www.chess.com"]

[Event "Titled Tuesday Blitz November 14 Early 2023"]
[White "Madaminov, Mukhiddin"]
[Black "Sousa, Andre Ventura"]
[WhiteFideId "14210703"]
[BlackFideId "1917617"]
[WhiteElo "2865"]
[BlackElo "2584"]
[Result "1-0"]
[Round "2"]
[TimeControl "180+1"]
[Date "2023.11.14"]
[WhiteClock "0:00:44"]
[BlackClock "0:00:11"]
[Board "47"]

1. e4 {[%clk 0:03:00]}  e5 {[%clk 0:02:59]} 2. Nf3 {[%clk 0:03:01]}  Nc6 {[%clk 0:03:00]} 3. Bb5 {[%clk 0:03:02]}  a6 {[%clk 0:03:00]} 4. Ba4 {[%clk 0:03:02]}  Nf6 {[%clk 0:03:00]} 5. O-O {[%clk 0:03:03]}  d6 {[%clk 0:03:00]} 6. Re1 {[%clk 0:03:03]}  g6 {[%clk 0:03:01]} 7. c3 {[%clk 0:03:03]}  Bd7 {[%clk 0:03:01]} 8. d4 {[%clk 0:03:03]}  Bg7 {[%clk 0:03:01]} 9. Bc2 {[%clk 0:03:02]}  O-O {[%clk 0:03:01]} 10. a4 {[%clk 0:03:02]}  Bg4 {[%clk 0:02:56]} 11. d5 {[%clk 0:02:58]}  Ne7 {[%clk 0:02:55]} 12. Nbd2 {[%clk 0:02:57]}  Nh5 {[%clk 0:02:54]} 13. h3 {[%clk 0:02:57]}  Bd7 {[%clk 0:02:53]} 14. c4 {[%clk 0:02:47]}  a5 {[%clk 0:02:50]} 15. Nf1 {[%clk 0:02:35]}  Qe8 {[%clk 0:02:47]} 16. g4 {[%clk 0:02:19]}  Nf4 {[%clk 0:02:47]} 17. Bxf4 {[%clk 0:02:19]}  exf4 {[%clk 0:02:47]} 18. e5 {[%clk 0:02:20]}  dxe5 {[%clk 0:02:43]} 19. Nxe5 {[%clk 0:02:21]}  Qd8 {[%clk 0:02:40]} 20. Nh2 {[%clk 0:02:19]}  f5 {[%clk 0:02:31]} 21. g5 {[%clk 0:02:15]}  Nc8 {[%clk 0:02:29]} 22. Nhf3 {[%clk 0:02:14]}  Nd6 {[%clk 0:02:23]} 23. Kg2 {[%clk 0:01:55]}  Re8 {[%clk 0:02:07]} 24. Qd2 {[%clk 0:01:35]}  Bxe5 {[%clk 0:02:05]} 25. Rxe5 {[%clk 0:01:32]}  Rxe5 {[%clk 0:02:05]} 26. Nxe5 {[%clk 0:01:33]}  Qxg5+ {[%clk 0:02:06]} 27. Kh2 {[%clk 0:01:34]}  Be8 {[%clk 0:01:40]} 28. Re1 {[%clk 0:01:30]}  b6 {[%clk 0:01:36]} 29. b3 {[%clk 0:01:27]}  Bf7 {[%clk 0:01:29]} 30. Nf3 {[%clk 0:01:08]}  Qh6 {[%clk 0:01:15]} 31. Re7 {[%clk 0:01:08]}  Re8 {[%clk 0:01:15]} 32. Rxc7 {[%clk 0:01:07]}  Ne4 {[%clk 0:01:15]} 33. Qd4 {[%clk 0:01:03]}  Qh5 {[%clk 0:01:11]} 34. Bxe4 {[%clk 0:01:00]}  fxe4 {[%clk 0:00:58]} 35. Qf6 {[%clk 0:00:58]}  Rf8 {[%clk 0:00:56]} 36. Ne5 {[%clk 0:00:50]}  Qe2 {[%clk 0:00:40]} 37. Ng4 {[%clk 0:00:50]}  h5 {[%clk 0:00:40]} 38. Nh6+ {[%clk 0:00:51]}  Kh7 {[%clk 0:00:40]} 39. Qxf4 {[%clk 0:00:51]}  e3 {[%clk 0:00:29]} 40. Rxf7+ {[%clk 0:00:51]}  Rxf7 {[%clk 0:00:29]} 41. Qxf7+ {[%clk 0:00:52]}  Kxh6 {[%clk 0:00:28]} 42. Qf4+ {[%clk 0:00:52]}  Kh7 {[%clk 0:00:28]} 43. Qxe3 {[%clk 0:00:53]}  Qb2 {[%clk 0:00:25]} 44. d6 {[%clk 0:00:48]}  Qa3 {[%clk 0:00:11]} 45. Qd4 {[%clk 0:00:44]} 1-0


[Site "https://www.chess.com"]

[Event "Titled Tuesday Blitz November 14 Early 2023"]
[White "Jaskolka, Tomasz"]
[Black "Boruchovsky, Avital"]
[WhiteFideId "1170791"]
[BlackFideId "2800055"]
[WhiteElo "2580"]
[BlackElo "2859"]
[Result "0-1"]
[Round "2"]
[TimeControl "180+1"]
[Date "2023.11.14"]
[WhiteClock "0:00:01"]
[BlackClock "0:00:26"]
[Board "48"]

1. d4 {[%clk 0:02:44]}  Nf6 {[%clk 0:02:59]} 2. Nc3 {[%clk 0:02:40]}  d5 {[%clk 0:02:58]} 3. Bf4 {[%clk 0:02:41]}  g6 {[%clk 0:02:54]} 4. e3 {[%clk 0:02:39]}  Bg7 {[%clk 0:02:54]} 5. h4 {[%clk 0:02:39]}  h5 {[%clk 0:02:50]} 6. Nf3 {[%clk 0:02:38]}  O-O {[%clk 0:02:48]} 7. Be2 {[%clk 0:02:36]}  c5 {[%clk 0:02:48]} 8. Ne5 {[%clk 0:02:30]}  cxd4 {[%clk 0:02:45]} 9. exd4 {[%clk 0:02:30]}  Nc6 {[%clk 0:02:45]} 10. Bb5 {[%clk 0:02:10]}  Qb6 {[%clk 0:02:34]} 11. Bxc6 {[%clk 0:02:10]}  bxc6 {[%clk 0:02:31]} 12. Qd2 {[%clk 0:02:01]}  Bf5 {[%clk 0:02:24]} 13. O-O-O {[%clk 0:01:49]}  c5 {[%clk 0:02:09]} 14. Na4 {[%clk 0:01:27]}  Qa6 {[%clk 0:02:07]} 15. Nxc5 {[%clk 0:01:27]}  Qxa2 {[%clk 0:02:06]} 16. Qc3 {[%clk 0:01:22]}  Ne4 {[%clk 0:01:34]} 17. Nxe4 {[%clk 0:01:05]}  Bxe4 {[%clk 0:01:34]} 18. Qa3 {[%clk 0:01:01]}  Qxa3 {[%clk 0:01:31]} 19. bxa3 {[%clk 0:01:02]}  Rfc8 {[%clk 0:01:29]} 20. Rd2 {[%clk 0:00:58]}  Bxg2 {[%clk 0:01:27]} 21. Rg1 {[%clk 0:00:58]}  Be4 {[%clk 0:01:27]} 22. f3 {[%clk 0:00:49]}  Bf5 {[%clk 0:01:28]} 23. Be3 {[%clk 0:00:40]}  Rc3 {[%clk 0:01:25]} 24. Nd3 {[%clk 0:00:38]}  Rb8 {[%clk 0:01:10]} 25. Bf4 {[%clk 0:00:22]}  Rbc8 {[%clk 0:01:07]} 26. Nb4 {[%clk 0:00:18]}  Rxa3 {[%clk 0:01:06]} 27. Nxd5 {[%clk 0:00:15]}  Kf8 {[%clk 0:00:42]} 28. Kb2 {[%clk 0:00:14]}  Ra5 {[%clk 0:00:36]} 29. Nb4 {[%clk 0:00:03]}  Rb5 {[%clk 0:00:33]} 30. Ka3 {[%clk 0:00:04]}  Rc3+ {[%clk 0:00:30]} 31. Ka4 {[%clk 0:00:04]}  Bd7 {[%clk 0:00:30]} 32. Rd3 {[%clk 0:00:02]}  Rc4 {[%clk 0:00:26]} 33. c3 {[%clk 0:00:01]} 0-1


[Site "https://www.chess.com"]